bitfinex-derivatives/quotes_SOLF0:USTF0_20251101
["timestamp","ask_amount","ask_price","bid_price","bid_amount"]
[1761977967729,8.93390425,185.75,185.74,83.63834861]
[1761977968028,4.46623523,185.75,185.74,78.61]
[1761977968421,4.8458,185.82,185.75,2.67]
[1761977968422,7.5358,185.82,185.75,2.67]
[1761977968628,11.62482131,185.81,185.78,2.67]
[1761977968829,8.93482131,185.8,185.79,2.67]
[1761977972128,2.69,185.81,185.79,2.67]
[1761977972328,4.8452,185.85,185.79,2.67]
[1761977972329,8.93778152,185.8,185.79,2.67]
[1761977973930,8.93778152,185.8,185.79,7.69791442]
[1761977975528,4.46765511,185.8,185.79,2.67]
[1761977975727,2.69,185.85,185.79,2.67]
[1761977975925,11.62651388,185.84,185.81,2.67]
[1761977976127,8.93651388,185.83,185.81,7.69629735]
[1761977976327,8.93651388,185.82,185.81,7.69629735]
[1761977976927,4.46668924,185.82,185.81,7.69629735]
[1761977978240,4.46668924,185.82,185.81,2.67]
[1761977980839,4.46668924,185.82,185.7,13.34373935]
[1761977980840,2.69,185.81,185.78,7.69629735]
[1761977981035,7.15668924,185.8,185.78,7.69629735]
[1761977981236,4.46115651,185.79,185.78,51.43]
[1761977982426,2.69,185.81,185.78,51.43]
[1761977982630,4.46115651,185.8,185.79,2.67]
[1761977983341,4.46115651,185.8,185.78,53.78629735]
[1761977983535,2.69,185.81,185.78,51.43]
[1761977983735,7.15024199,185.8,185.78,51.43]
[1761977983936,35.28766536,185.94,185.72,6.69683343]
[1761977983937,2.69,185.78,185.72,6.69683343]
[1761977984136,11.79345586,185.79,185.68,7.6336268]
[1761977984137,2.69,185.76,185.68,7.6336268]
[1761977984338,2.69,185.74,185.67,2.67]
[1761977984640,2.69,185.72,185.67,2.67]
[1761977984839,7.1496097,185.71,185.67,2.67]
[1761977985141,2.69,185.71,185.67,2.67]
[1761977985536,2.69,185.74,185.67,2.67]
[1761977985742,11.62032794,185.73,185.67,2.67]
[1761977985944,11.62032794,185.72,185.67,2.67]
[1761977986244,4.45967448,185.71,185.67,2.67]
[1761977986433,7.34967448,185.71,185.67,2.67]
[1761977986629,2.89,185.71,185.67,2.67]
[1761977989246,27.6,185.84,185.68,2.87]
[1761977989247,2.89,185.77,185.68,2.87]
[1761977989544,11.81733662,185.76,185.68,2.87]
[1761977989744,8.92733662,185.75,185.68,2.87]
[1761977989945,8.92733662,185.74,185.68,2.87]
[1761977990245,8.92733662,185.73,185.68,2.87]
[1761977990448,4.45810536,185.72,185.68,2.87]
[1761977990643,2.89,185.76,185.68,2.87]
[1761977990848,8.92600267,185.75,185.68,2.87]
[1761977991049,8.92600267,185.74,185.68,2.87]
[1761977991243,4.45736375,185.73,185.68,2.87]
[1761977991546,2.89,185.76,185.68,2.87]
[1761977991746,8.9257577,185.75,185.68,2.87]
[1761977992048,8.9257577,185.74,185.68,2.87]
[1761977992345,4.45724142,185.73,185.68,2.87]
[1761977992547,2.89,185.76,185.68,2.87]
[1761977992749,8.92560976,185.75,185.68,2.87]
[1761977993048,8.92560976,185.74,185.68,2.87]
[1761977993243,4.45715525,185.73,185.68,2.87]
[1761977993439,4.45715525,185.72,185.68,2.87]
[1761977993640,2.89,185.76,185.68,2.87]
[1761977993841,8.95961805,185.75,185.68,2.87]
[1761977994040,8.95961805,185.74,185.68,2.87]
[1761977994246,4.49152414,185.73,185.68,2.87]
[1761977994449,4.49152414,185.72,185.68,2.87]
[1761977994653,2.89,185.76,185.68,2.87]
[1761977994949,8.95947243,185.75,185.68,2.87]
[1761977995149,8.95947243,185.74,185.68,2.87]
[1761977995443,7.38145114,185.73,185.68,2.87]
[1761977995642,4.49145114,185.72,185.68,2.87]
[1761977996951,4.49145114,185.72,185.69,2.87]
[1761977997248,2.89,185.76,185.69,2.87]
[1761977997442,8.95771477,185.75,185.69,2.87]
[1761977997641,2.89,185.8,185.73,2.87]
[1761977997946,251.65265666,185.91,185.73,2.87]
[1761977997947,11.84882067,185.79,185.73,2.87]
[1761977998149,11.84882067,185.78,185.73,2.87]
[1761977998349,4.49080227,185.77,185.73,2.87]
[1761977998540,4.49080227,185.76,185.73,2.87]
[1761977998740,2.89,185.78,185.73,2.87]
[1761977998941,4.49032385,185.77,185.73,2.87]
[1761977999144,4.49032385,185.76,185.73,2.87]
[1761977999343,2.89,185.78,185.73,2.87]
[1761977999557,4.49040275,185.77,185.73,2.87]
[1761977999744,4.49040275,185.76,185.73,2.87]
[1761978000050,2.89,185.78,185.73,2.87]
[1761978000251,4.49040479,185.77,185.75,2.87]
[1761978000454,2.89,185.82,185.75,2.87]
[1761978000654,8.95841948,185.81,185.75,2.87]
[1761978000858,4.49030017,185.8,185.75,2.87]
[1761978001154,7.38030017,185.79,185.75,2.87]
[1761978001354,2.89,185.77,185.74,4.8479]
[1761978001756,2.89,185.77,185.74,7.7179]
[1761978003150,2.89,185.82,185.75,2.87]
[1761978003350,2.89,185.8,185.75,2.87]
[1761978003557,2.89,185.78,185.75,2.87]
[1761978003757,4.49039692,185.77,185.75,2.87]
[1761978003956,7.38039692,185.77,185.74,7.7179]
[1761978004163,2.89,185.77,185.74,7.7179]
[1761978004365,2.89,185.77,185.74,2.87]
[1761978007570,2.89,185.77,185.72,4.8484]
[1761978007864,2.89,185.75,185.72,7.7184]
[1761978008767,6.68357683,185.8,185.73,2.87]
[1761978008969,2.89,185.78,185.73,2.87]
[1761978009164,2.89,185.76,185.73,2.87]
[1761978009462,7.38092789,185.75,185.7,11.54583343]
[1761978009670,2.89,185.74,185.7,6.69683343]
[1761978009866,2.89,185.74,185.69,9.56683343]
[1761978010772,4.8474,185.76,185.69,2.87]
[1761978010773,2.89,185.72,185.69,2.87]
[1761978011070,2.89,185.72,185.68,6.69683343]
[1761978011071,7.38157586,185.71,185.68,2.87]
[1761978011268,2.89,185.75,185.68,2.87]
[1761978011562,2.89,185.73,185.68,2.87]
[1761978011765,7.38129944,185.72,185.68,2.87]
[1761978011964,2.89,185.72,185.68,2.87]
[1761978015778,2.89,185.72,185.67,7.7195]
[1761978016069,2.89,185.72,185.68,2.78]
[1761978016271,2.89,185.72,185.69,2.78]
[1761978016474,2.76,185.75,185.69,2.78]
[1761978016773,2.76,185.73,185.69,2.78]
[1761978017072,4.49289898,185.72,185.69,2.78]
[1761978017974,7.25289898,185.72,185.69,2.78]
[1761978018175,2.76,185.72,185.69,2.78]
[1761978019778,2.81,185.75,185.69,2.78]
[1761978020075,6.68457683,185.76,185.69,2.78]
[1761978020076,2.81,185.73,185.69,2.78]
[1761978020276,7.30331577,185.72,185.69,2.78]
[1761978020476,2.81,185.72,185.69,2.78]
[1761978021472,1.83717683,185.76,185.69,2.78]
[1761978021781,8.94952305,185.75,185.7,2.74]
[1761978022076,4.49422988,185.74,185.7,2.74]
[1761978022276,4.49422988,185.73,185.7,2.74]
[1761978022473,2.81,185.75,185.7,2.74]
[1761978022673,4.49604216,185.74,185.7,2.74]
[1761978022871,2.81,185.75,185.7,2.74]
[1761978022872,4.49604216,185.73,185.7,2.74]
[1761978023074,2.81,185.75,185.7,2.74]
[1761978023378,4.50733903,185.74,185.7,2.74]
[1761978023678,4.50733903,185.73,185.7,2.74]
[1761978023879,2.81,185.75,185.7,2.74]
[1761978024077,4.50962239,185.74,185.7,2.74]
[1761978024378,2.81,185.75,185.7,2.74]
[1761978024379,4.50962239,185.73,185.71,2.74]
[1761978024580,4.50962239,185.72,185.71,2.74]
[1761978025082,4.50962239,185.72,185.71,7.5887]
[1761978027375,4.50962239,185.72,185.7,9.43683343]
[1761978027570,4.50962239,185.71,185.7,9.43683343]
[1761978028580,4.50962239,185.71,185.7,6.69683343]
[1761978028884,4.50962239,185.71,185.7,9.43683343]
[1761978035586,7.31962239,185.71,185.7,6.69683343]
[1761978036084,4.50962239,185.71,185.7,2.74]
[1761978037089,8.97765222,185.71,185.7,2.74]
[1761978037478,8.97772638,185.71,185.7,2.74]
[1761978037681,11.78772638,185.71,185.69,90.56603343]
[1761978037884,4.50962239,185.7,185.69,90.56603343]
[1761978040391,4.50962239,185.7,185.68,6.69683343]
[1761978040392,2.81,185.69,185.68,6.69683343]
[1761978040691,2.81,185.69,185.67,2.74]
[1761978040692,8.97718937,185.69,185.67,2.74]
[1761978040886,4.50962239,185.68,185.67,2.74]
[1761978041090,4.50962239,185.68,185.67,9.43683343]
[1761978043894,4.50962239,185.68,185.66,5.03376394]
[1761978043895,10.05516546,185.68,185.66,5.03376394]
[1761978044193,2.81,185.66,185.48,16.08373935]
[1761978044387,2.81,185.6,185.53,0.93761367]
[1761978044694,2.81,185.58,185.54,40.04]
[1761978045891,2.86,185.62,185.55,2.78]
[1761978046100,9.40718976,185.61,185.55,2.78]
[1761978046296,4.9001784,185.6,185.57,2.78]
[1761978046595,2.86,185.63,185.57,2.78]
[1761978046799,2.86,185.61,185.57,2.78]
[1761978046997,4.89763965,185.6,185.57,2.78]
[1761978047190,2.86,185.61,185.57,2.78]
[1761978047590,2.86,185.64,185.57,2.78]
[1761978047787,4.89654482,185.63,185.57,2.78]
[1761978047985,2.86,185.64,185.57,2.78]
[1761978049095,2.86,185.64,185.58,4.8521]
[1761978049902,2.86,185.68,185.61,2.78]
[1761978050098,2.86,185.66,185.62,76.56]
[1761978050290,9.39824674,185.65,185.62,76.56]
[1761978050492,4.89601991,185.64,185.62,76.56]
[1761978050694,2.86,185.66,185.62,76.56]
[1761978050892,12.25807438,185.65,185.62,76.56]
[1761978051094,4.89593132,185.64,185.62,76.56]
[1761978051400,2.86,185.65,185.62,76.56]
[1761978051600,4.89604106,185.64,185.62,76.56]
[1761978051803,2.86,185.65,185.62,76.56]
[1761978052100,4.89604106,185.64,185.62,76.56]
[1761978052297,2.86,185.69,185.63,2.78]
[1761978052600,2.86,185.67,185.63,2.78]
[1761978052797,12.25856511,185.66,185.63,2.78]
[1761978053099,4.89620314,185.65,185.62,84.191]
[1761978053301,2.86,185.66,185.63,2.78]
[1761978053601,4.89632512,185.65,185.63,2.78]
[1761978053798,2.86,185.66,185.63,2.78]
[1761978054004,4.89632601,185.65,185.63,2.78]
[1761978054205,2.86,185.66,185.63,2.78]
[1761978054403,4.89636631,185.65,185.63,2.78]
[1761978054602,2.86,185.66,185.63,2.78]
[1761978054802,4.89636631,185.65,185.63,2.78]
[1761978055002,2.86,185.66,185.63,2.78]
[1761978055302,4.89684837,185.65,185.63,2.78]
[1761978055601,2.86,185.66,185.63,2.78]
[1761978055803,4.89678391,185.65,185.63,2.78]
[1761978056004,2.86,185.66,185.63,2.78]
[1761978056307,7.75678391,185.65,185.64,76.56]
[1761978056805,4.89678391,185.65,185.64,79.34]
[1761978057212,4.89678391,185.65,185.64,76.56]
[1761978057807,7.75678391,185.65,185.62,4.851]
[1761978058007,2.86,185.65,185.64,76.56]
[1761978058207,7.75645771,185.65,185.64,76.56]
[1761978061404,2.86,185.64,185.6,4.8516]
[1761978061906,2.86,185.64,185.61,76.54]
[1761978062713,2.86,185.64,185.6,7.6316]
[1761978063007,2.86,185.64,185.61,76.52]
[1761978063511,2.86,185.64,185.61,79.3]
[1761978064105,2.86,185.64,185.61,76.52]
[1761978065702,2.86,185.62,185.53,3.71761367]
[1761978065899,2.86,185.6,185.53,0.93761367]
[1761978066106,2.86,185.58,185.54,33.84]
[1761978066998,2.86,185.58,185.55,2.78]
[1761978067202,2.86,185.62,185.55,2.78]
[1761978067403,12.21956923,185.61,185.55,2.78]
[1761978067602,2.86,185.59,185.55,2.78]
[1761978069910,2.86,185.63,185.55,2.78]
[1761978070110,9.35721737,185.62,185.55,2.78]
[1761978070316,7.74647358,185.61,185.56,2.78]
[1761978070518,4.88647358,185.6,185.56,2.78]
[1761978070912,4.88647358,185.6,185.56,7.6324]
[1761978071113,4.88647358,185.6,185.57,2.78]
[1761978071321,2.86,185.64,185.57,2.78]
[1761978071517,2.86,185.62,185.57,2.78]
[1761978071717,2.86,185.6,185.58,50.88]
[1761978071912,2.86,185.63,185.58,53.66]
[1761978072113,7.74669521,185.62,185.58,53.66]
[1761978072321,4.88669521,185.61,185.58,53.66]
[1761978075217,2.86,185.62,185.58,53.66]
[1761978075433,4.93075173,185.61,185.58,53.66]
[1761978075619,2.86,185.62,185.58,53.66]
[1761978075816,4.93074919,185.61,185.58,53.66]
[1761978076013,2.86,185.62,185.58,53.66]
[1761978076215,4.93075812,185.61,185.58,53.66]
[1761978076414,4.93075812,185.6,185.58,53.66]
[1761978076618,2.86,185.62,185.58,53.66]
[1761978076810,4.9315616,185.61,185.58,53.66]
[1761978077115,4.9315616,185.6,185.59,79.55]
[1761978077318,7.6215616,185.65,185.59,79.55]
[1761978077520,12.09515275,185.64,185.6,2.95]
[1761978077716,9.40515275,185.63,185.6,2.95]
[1761978077913,2.69,185.67,185.61,2.95]
[1761978078116,4.47378753,185.66,185.61,2.95]
[1761978078414,2.69,185.7,185.61,2.95]
[1761978078614,7.1652504,185.69,185.61,2.95]
[1761978078810,4.4752504,185.68,185.61,2.95]
[1761978079122,4.4752504,185.67,185.64,2.95]
[1761978079322,4.4752504,185.66,185.64,2.95]
[1761978079522,2.69,185.69,185.64,2.95]
[1761978079724,4.47607383,185.68,185.64,2.95]
[1761978080030,4.47607383,185.67,185.64,2.95]
[1761978080322,2.69,185.69,185.64,2.95]
[1761978080506,4.96367075,185.78,185.65,4.8503]
[1761978080507,2.96,185.67,185.65,4.8503]
[1761978080712,2.96,185.67,185.66,76.62]
[1761978080913,4.47749969,185.67,185.66,76.62]
[1761978081414,4.47749969,185.68,185.66,76.62]
[1761978081615,4.47749969,185.67,185.66,76.62]
[1761978081822,4.47749969,185.68,185.66,76.62]
[1761978082016,4.47749969,185.67,185.66,76.62]
[1761978085326,4.47749969,185.67,185.66,79.56]
[1761978086521,4.47749969,185.67,185.66,76.62]
[1761978087726,4.47749969,185.67,185.66,79.56]
[1761978088719,2.96,185.73,185.67,4.8496]
[1761978088921,7.43828259,185.72,185.68,2.94]
[1761978089116,2.96,185.72,185.68,2.94]
[1761978089724,2.96,185.75,185.68,2.94]
[1761978089925,4.85041211,185.74,185.68,2.94]
[1761978090124,2.96,185.72,185.67,4.8496]
[1761978090326,7.81041211,185.71,185.67,7.7896]
[1761978090529,2.96,185.69,185.67,2.94]
[1761978090734,7.81041211,185.68,185.64,2.94]
[1761978091030,4.85041211,185.67,185.65,79.54]
[1761978091333,4.85041211,185.66,185.65,79.54]
[1761978092630,7.81041211,185.66,185.65,76.6]
[1761978094127,4.85041211,185.66,185.65,76.6]
[1761978094325,4.85041211,185.66,185.65,76.56]
[1761978094930,7.81041211,185.66,185.65,76.56]
[1761978095632,7.81041211,185.66,185.63,4.8506]
[1761978095929,4.85041211,185.65,185.64,79.5]
[1761978098016,4.85041211,185.65,185.63,2.94]
[1761978098223,2.96,185.7,185.64,79.5]
[1761978098529,2.96,185.68,185.64,79.5]
[1761978098730,4.84216309,185.67,185.64,79.5]
[1761978098931,4.84216309,185.66,185.64,79.5]
[1761978099121,4.84216309,185.65,185.64,79.5]
[1761978100527,4.84216309,185.65,185.64,2.94]
[1761978100734,4.84216309,185.65,185.64,79.48]
[1761978101133,4.84216309,185.65,185.64,2.94]
[1761978101332,4.84216309,185.65,185.64,79.46]
[1761978102732,4.84195478,185.65,185.64,79.46]
[1761978105531,7.80195478,185.65,185.64,76.48]
[1761978105830,9.2544375,185.65,185.64,76.48]
[1761978106031,2.96,185.68,185.64,76.48]
[1761978106227,2.96,185.68,185.65,2.87]
[1761978106228,9.23669581,185.67,185.65,2.87]
[1761978106427,4.82393566,185.66,185.65,2.87]
[1761978107735,2.81,185.7,185.65,2.87]
[1761978107932,12.04602844,185.69,185.65,2.87]
[1761978108133,9.23602844,185.68,185.65,2.87]
[1761978108327,4.82376056,185.67,185.65,5.74475746]
[1761978108534,2.81,185.72,185.66,7.89628593]
[1761978108729,2.81,185.7,185.67,76.46]
[1761978109034,7.63410664,185.69,185.67,76.46]
[1761978109224,2.81,185.69,185.67,76.46]
[1761978109632,4.82338118,185.68,185.67,76.46]
[1761978109835,2.81,185.69,185.67,76.46]
[1761978110135,2.81,185.72,185.67,79.33]
[1761978110335,4.8484,185.73,185.68,2.87]
[1761978110336,12.04397525,185.71,185.68,2.87]
[1761978110536,9.23397525,185.7,185.68,2.87]
[1761978110736,4.8228377,185.69,185.68,2.87]
[1761978111331,9.2351213,185.69,185.68,2.87]
[1761978112441,4.8228377,185.69,185.68,2.87]
[1761978115340,9.21535548,185.69,185.68,2.87]
[1761978117948,9.21535548,185.69,185.68,5.74475746]
[1761978120235,9.21535548,185.69,185.68,10.77104339]
[1761978120630,4.8228377,185.69,185.68,5.74475746]
[1761978120840,4.8228377,185.69,185.68,82.12475746]
[1761978121246,9.22123795,185.69,185.68,82.12475746]
[1761978123943,2.81,185.68,185.66,5.03799204]
[1761978124145,2.81,185.66,185.65,5.03799204]
[1761978124352,9.22123795,185.66,185.65,81.41799204]
[1761978124541,9.22123795,185.66,185.65,76.38]
[1761978125050,12.03123795,185.66,185.65,76.38]
[1761978126243,9.22123795,185.66,185.65,76.38]
[1761978126450,12.03123795,185.66,185.65,76.38]
[1761978127443,9.22123795,185.66,185.65,79.25]
[1761978127750,9.22123795,185.66,185.65,76.38]
[1761978128554,12.03123795,185.66,185.65,76.38]
[1761978129252,12.03123795,185.66,185.64,5.03799204]
[1761978129451,9.22123795,185.65,185.64,5.03799204]
[1761978129947,2.81,185.64,185.63,5.03799204]
[1761978130148,2.81,185.63,185.62,5.03799204]
[1761978130344,12.03123795,185.63,185.62,5.03799204]
[1761978130552,2.81,185.62,185.61,5.03799204]
[1761978130851,12.03123795,185.62,185.61,81.43799204]
[1761978131053,12.03123795,185.62,185.61,5.03799204]
[1761978131253,12.03123795,185.62,185.61,81.43799204]
[1761978132054,12.03123795,185.62,185.61,5.03799204]
[1761978132254,9.22123795,185.62,185.61,81.43799204]
[1761978133055,12.03123795,185.62,185.61,81.43799204]
[1761978133556,9.22123795,185.62,185.61,81.43799204]
[1761978134053,9.22123795,185.62,185.61,5.03799204]
[1761978134254,9.22123795,185.62,185.61,81.43799204]
[1761978134451,4.8228377,185.62,185.61,84.30469956]
[1761978134953,4.8228377,185.62,185.61,81.43469956]
[1761978136950,9.21708567,185.62,185.61,76.4]
[1761978137149,9.21708567,185.62,185.61,79.27]
[1761978137547,9.21708567,185.62,185.61,76.4]
[1761978140257,9.21708567,185.62,185.61,79.16]
[1761978140656,9.21708567,185.62,185.61,76.4]
[1761978140955,9.21708567,185.62,185.6,7.79469956]
[1761978141156,4.8228377,185.61,185.6,7.79469956]
[1761978141449,4.8228377,185.61,185.6,79.14]
[1761978142354,4.8228377,185.61,185.6,2.76]
[1761978142556,4.8228377,185.61,185.6,79.14]
[1761978143561,4.8228377,185.61,185.6,76.38]
[1761978144656,4.8228377,185.61,185.6,76.36]
[1761978144854,9.21970868,185.61,185.6,76.36]
[1761978145555,2.8,185.6,185.57,7.79102777]
[1761978145854,4.8228377,185.59,185.58,76.36]
[1761978146553,4.8228377,185.59,185.57,2.76]
[1761978146854,4.8228377,185.58,185.57,2.76]
[1761978147159,4.8228377,185.58,185.57,79.16]
[1761978147360,4.81281354,185.58,185.57,79.16]
[1761978148061,2.8,185.6,185.57,79.16]
[1761978148257,4.81176176,185.59,185.57,79.16]
[1761978148459,2.8,185.6,185.57,79.16]
[1761978148653,4.81075437,185.59,185.57,79.16]
[1761978148860,4.81075437,185.58,185.57,79.16]
[1761978150262,2.8,185.6,185.57,79.16]
[1761978150470,4.80894559,185.59,185.57,79.16]
[1761978150762,2.8,185.6,185.57,79.16]
[1761978151054,7.60955646,185.59,185.56,2.76]
[1761978151255,2.8,185.57,185.53,10.56108015]
[1761978151461,2.8,185.57,185.53,8.72161782]
[1761978151647,2.8,185.57,185.54,79.14]
[1761978152363,2.8,185.57,185.54,2.76]
[1761978152558,2.8,185.57,185.53,5.02400415]
[1761978152769,2.8,185.55,185.54,76.38]
[1761978153254,2.8,185.58,185.54,76.38]
[1761978153456,4.80569567,185.57,185.55,2.76]
[1761978153657,7.60569567,185.57,185.55,2.76]
[1761978153859,4.80569567,185.56,185.54,76.38]
[1761978154256,2.8,185.57,185.54,76.38]
[1761978154760,2.8,185.57,185.54,79.14]
[1761978157976,4.8513,185.61,185.55,2.76]
[1761978158266,9.19019217,185.6,185.55,2.76]
[1761978158471,4.80393395,185.59,185.55,2.76]
[1761978158669,4.80393395,185.58,185.55,2.76]
[1761978158972,2.8,185.6,185.55,2.76]
[1761978159171,9.1909406,185.59,185.55,2.76]
[1761978159470,4.80409409,185.58,185.55,2.76]
[1761978159661,2.8,185.6,185.55,2.76]
[1761978159860,9.19106871,185.59,185.55,2.76]
[1761978160060,4.80439214,185.58,185.55,2.76]
[1761978160266,2.8,185.6,185.55,2.76]
[1761978160467,9.19268287,185.59,185.55,2.76]
[1761978160672,4.8052359,185.58,185.55,2.76]
[1761978160969,2.8,185.6,185.55,2.76]
[1761978161170,9.19268287,185.59,185.55,2.76]
[1761978161472,4.8052359,185.58,185.55,2.76]
[1761978161772,2.8,185.6,185.55,2.76]
[1761978162068,9.19431584,185.59,185.55,2.76]
[1761978162371,2.8,185.6,185.55,2.76]
[1761978162571,11.99611683,185.59,185.55,2.76]
[1761978162872,4.8072171,185.58,185.55,2.76]
[1761978163276,2.8,185.59,185.55,2.76]
[1761978163572,4.80790083,185.58,185.55,2.76]
[1761978163772,2.8,185.59,185.55,2.76]
[1761978163978,4.80790083,185.58,185.55,2.76]
[1761978164171,2.8,185.59,185.55,2.76]
[1761978164373,4.81183434,185.58,185.55,2.76]
[1761978164569,4.81183434,185.57,185.55,2.76]
[1761978164771,2.8,185.59,185.55,2.76]
[1761978164970,4.81185134,185.58,185.55,2.76]
[1761978165175,4.81185134,185.57,185.55,2.76]
[1761978165483,2.8,185.59,185.55,2.76]
[1761978165679,7.61188133,185.58,185.55,2.76]
[1761978165874,4.81188133,185.57,185.55,2.76]
[1761978166180,2.8,185.58,185.55,2.76]
[1761978166380,4.81363644,185.57,185.55,2.76]
[1761978166579,2.8,185.58,185.55,2.76]
[1761978166782,4.81363644,185.57,185.55,2.76]
[1761978166982,2.8,185.58,185.55,2.76]
[1761978167175,4.81363644,185.57,185.55,2.76]
[1761978167367,2.8,185.58,185.55,2.76]
[1761978167572,4.8157008,185.57,185.55,2.76]
[1761978167874,2.8,185.58,185.55,2.76]
[1761978168078,4.8157008,185.57,185.55,2.76]
[1761978168276,4.81814057,185.56,185.55,2.76]
[1761978168980,4.81814057,185.56,185.55,79.1]
[1761978170079,4.81814057,185.56,185.55,79.08]
[1761978170682,4.81814057,185.56,185.55,2.76]
[1761978170979,4.81814057,185.56,185.55,79.08]
[1761978172282,4.81814057,185.56,185.55,84.10400415]
[1761978173782,4.81814057,185.56,185.55,7.78400415]
[1761978173982,4.81814057,185.56,185.55,84.08400415]
[1761978176485,4.81814057,185.56,185.55,81.32400415]
[1761978177083,4.81814057,185.56,185.55,5.02400415]
[1761978177285,7.73814057,185.56,185.55,5.02400415]
[1761978177485,12.08324069,185.56,185.55,76.28]
[1761978178075,12.08324069,185.56,185.54,5.02400415]
[1761978178378,7.73814057,185.55,185.54,5.02400415]
[1761978178579,7.73814057,185.55,185.54,81.30400415]
[1761978178881,7.73814057,185.55,185.54,81.31599333]
[1761978181289,7.73814057,185.55,185.54,76.28]
[1761978181586,7.73814057,185.55,185.52,6.68362281]
[1761978181775,4.81814057,185.54,185.53,78.98]
[1761978183489,4.81814057,185.54,185.53,85.66362281]
[1761978186295,4.81814057,185.54,185.53,78.98]
[1761978187794,3.44247925,185.54,185.53,78.98]
[1761978188095,1.05817601,185.54,185.53,78.98]
[1761978189992,1.05817601,185.54,185.53,78.96]
[1761978190296,1.05817601,185.54,185.53,78.94]
[1761978191000,1.05817601,185.54,185.53,2.72]
[1761978191298,1.05817601,185.54,185.53,78.94]
[1761978192996,1.05817601,185.54,185.53,88.9742746]
[1761978193199,5.41934889,185.54,185.53,78.94]
[1761978193389,1.05817601,185.54,185.53,12.7542746]
[1761978193590,1.05817601,185.54,185.53,88.9742746]
[1761978194196,1.05817601,185.54,185.53,12.7542746]
[1761978194495,1.05817601,185.54,185.53,88.9742746]
[1761978194699,7.601e-05,185.54,185.53,78.94]
[1761978200101,2.87684673,185.69,185.56,2.71]
[1761978200102,4.36254964,185.61,185.56,2.71]
[1761978200300,4.36254964,185.6,185.59,2.71]
[1761978200603,4.36254964,185.6,185.59,78.93]
[1761978202810,4.36254964,185.6,185.59,85.66245749]
[1761978206516,2.87,185.66,185.6,2.71]
[1761978206713,4.8498,185.67,185.63,5.04359575]
[1761978206714,11.95727259,185.65,185.63,5.04359575]
[1761978206915,11.95727259,185.64,185.63,81.26359575]
[1761978207517,11.95544055,185.64,185.63,81.26359575]
[1761978208420,11.95544055,185.64,185.63,76.22]
[1761978208718,11.95544055,185.64,185.62,5.04359575]
[1761978208920,2.87,185.64,185.63,59.96]
[1761978209113,11.94992601,185.64,185.63,65.00359575]
[1761978210511,11.94992601,185.64,185.63,59.96]
[1761978211110,11.94992601,185.64,185.63,65.00359575]
[1761978211320,11.94992601,185.64,185.63,59.96]
[1761978211521,11.94992601,185.64,185.62,5.04359575]
[1761978211522,2.87,185.63,185.62,5.04359575]
[1761978211723,11.94992601,185.63,185.62,67.5]
[1761978213616,2.87,185.62,185.6,5.04359575]
[1761978213819,2.87,185.62,185.61,76.2]
[1761978214022,2.87,185.61,185.6,5.04359575]
[1761978214210,11.93665816,185.61,185.6,81.24359575]
[1761978214409,9.06665816,185.61,185.6,83.95359575]
[1761978216321,11.93665816,185.61,185.6,5.04359575]